bitfinex/quotes_BTCUSD_20230106
["timestamp","ask_amount","ask_price","bid_price","bid_amount"]
[1672984580488,17.16456752,16815.0,16814.0,5.76315206]
[1672984581090,17.16456752,16815.0,16814.0,5.49564689]
[1672984581852,17.16456752,16815.0,16814.0,5.76316247]
[1672984582646,17.16456752,16815.0,16814.0,5.49564689]
[1672984588665,17.16456752,16815.0,16814.0,5.4955785]
[1672984591838,17.16456752,16815.0,16814.0,5.13868688]
[1672984592105,17.16456752,16815.0,16814.0,5.13862488]
[1672984595076,17.16456752,16815.0,16814.0,5.49550846]
[1672984595338,17.16456752,16815.0,16814.0,5.13862488]
[1672984606990,17.16456752,16815.0,16814.0,4.58157765]
[1672984607245,17.16456752,16815.0,16814.0,5.4020225]
[1672984609748,17.16456752,16815.0,16814.0,4.93846167]
[1672984610257,16.22722223,16815.0,16814.0,5.402032]
[1672984610517,16.22722223,16815.0,16814.0,5.40263307]
[1672984614800,16.22722223,16815.0,16814.0,5.04574905]
[1672984619077,16.22722223,16815.0,16814.0,5.02799271]
[1672984619334,16.22722223,16815.0,16814.0,4.44903185]
[1672984620576,16.22722223,16815.0,16814.0,4.89508579]
[1672984621861,16.22722223,16815.0,16814.0,4.89561934]
[1672984622647,16.22722223,16815.0,16814.0,4.89544268]
[1672984622909,16.22722223,16815.0,16814.0,4.44963292]
[1672984623166,16.22722223,16815.0,16814.0,4.89537107]
[1672984623909,16.22722223,16815.0,16814.0,5.12404433]
[1672984624700,16.22722223,16815.0,16814.0,4.44903185]
[1672984626433,16.22722223,16815.0,16814.0,4.71678396]
[1672984626691,16.22722223,16815.0,16814.0,4.27145907]
[1672984628497,16.22722223,16815.0,16814.0,3.11343654]
[1672984628782,16.22722223,16815.0,16814.0,1.96686036]
[1672984629561,16.22722223,16815.0,16814.0,2.6388202]
[1672984632157,16.22722223,16815.0,16814.0,3.08413039]
[1672984632676,16.22722223,16815.0,16814.0,3.38413039]
[1672984636280,16.22722223,16815.0,16814.0,3.08413039]
[1672984637318,16.22722223,16815.0,16814.0,3.38413039]
[1672984638112,16.22722223,16815.0,16814.0,3.68149039]
[1672984638373,16.22722223,16815.0,16814.0,3.38413039]
[1672984643896,16.22722223,16815.0,16814.0,2.9388202]
[1672984645425,16.22722223,16815.0,16814.0,4.3253664]
[1672984645690,16.22722223,16815.0,16814.0,4.32541706]
[1672984646457,16.22722223,16815.0,16814.0,5.32541706]
[1672984646788,16.22722223,16815.0,16814.0,5.503955]
[1672984647238,16.22722223,16815.0,16814.0,6.09783213]
[1672984658072,16.22722223,16815.0,16814.0,5.09783213]
[1672984659097,16.22715852,16815.0,16814.0,4.8878856]
[1672984659397,16.22715852,16815.0,16814.0,5.24465223]
[1672984659688,16.16215852,16815.0,16814.0,5.23965223]
[1672984659954,16.16715852,16815.0,16814.0,5.31565223]
[1672984660756,16.16715852,16815.0,16814.0,5.31562044]
[1672984661017,16.16715852,16815.0,16814.0,4.9588856]
[1672984661523,16.16215852,16815.0,16814.0,4.8828856]
[1672984661780,16.16815852,16815.0,16814.0,5.0028856]
[1672984662846,16.16815852,16815.0,16814.0,5.35957763]
[1672984663610,16.16815852,16815.0,16814.0,5.0028856]
[1672984665175,16.16815852,16815.0,16814.0,5.35954107]
[1672984665440,16.16815852,16815.0,16814.0,4.61392678]
[1672984666449,16.16815852,16815.0,16814.0,5.05973339]
[1672984667706,16.16815852,16815.0,16814.0,4.61392678]
[1672984668716,16.16815852,16815.0,16814.0,5.05965639]
[1672984670234,16.16815852,16815.0,16814.0,5.18034973]
[1672984675759,16.16815852,16815.0,16814.0,5.5369001]
[1672984676274,16.16815852,16815.0,16814.0,4.96929744]
[1672984676537,16.16815852,16815.0,16814.0,5.5369001]
[1672984678945,16.16815852,16815.0,16814.0,5.80436621]
[1672984679206,16.16815852,16815.0,16814.0,5.3586366]
[1672984679468,16.16815852,16815.0,16814.0,4.79103394]
[1672984679732,16.16815852,16815.0,16814.0,4.96934986]
[1672984681313,16.16815852,16815.0,16814.0,4.79103394]
[1672984683966,16.16815852,16815.0,16814.0,5.3586366]
[1672984685042,16.16815852,16815.0,16814.0,5.5369001]
[1672984686116,16.16815852,16815.0,16814.0,5.80444517]
[1672984686517,16.16815852,16815.0,16814.0,5.5369001]
[1672984689409,16.16815852,16815.0,16814.0,5.23685963]
[1672984689861,16.16815852,16815.0,16814.0,5.80446229]
[1672984690070,16.16815852,16815.0,16814.0,5.35873268]
[1672984690576,16.16815852,16815.0,16814.0,4.79113002]
[1672984694919,16.16815852,16815.0,16814.0,4.9695052]
[1672984695420,16.16815852,16815.0,16814.0,4.79113002]
[1672984697736,16.16815852,16815.0,16814.0,4.01907593]
[1672984697976,16.16815852,16815.0,16814.0,3.3471405]
[1672984698733,16.16815852,16815.0,16814.0,2.77957831]
[1672984702059,16.16815852,16815.0,16814.0,3.07957831]
[1672984705342,16.16815852,16815.0,16814.0,3.3471405]
[1672984705853,16.16815852,16815.0,16814.0,3.07957831]
[1672984706113,16.16815852,16815.0,16814.0,3.61347046]
[1672984706369,16.16815852,16815.0,16814.0,3.88103265]
[1672984706909,16.16815852,16815.0,16814.0,4.55586942]
[1672984707475,16.16815852,16815.0,16814.0,3.88103265]
[1672984707741,16.16815852,16815.0,16814.0,3.61347046]
[1672984711293,16.16815852,16815.0,16814.0,4.55563591]
[1672984712394,16.16815852,16815.0,16814.0,4.55532991]
[1672984712655,16.16815852,16815.0,16814.0,5.47948294]
[1672984712911,16.16815852,16815.0,16814.0,5.47947353]
[1672984713166,16.16815852,16815.0,16814.0,5.30110953]
[1672984713932,16.16815852,16815.0,16814.0,4.91187076]
[1672984714469,16.16815852,16815.0,16814.0,4.73350687]
[1672984715000,16.16815852,16815.0,16814.0,5.30110953]
[1672984715253,16.16815852,16815.0,16814.0,5.90110953]
[1672984715521,16.16815852,16815.0,16814.0,5.36721738]
[1672984716552,16.16815852,16815.0,16814.0,6.36721738]
[1672984716554,16.16815852,16815.0,16814.0,6.81294699]
[1672984716804,16.16815852,16815.0,16814.0,6.5453848]
[1672984732105,16.16815852,16815.0,16814.0,6.18883443]
[1672984732928,16.16815852,16815.0,16814.0,6.54555083]
[1672984733457,16.16815852,16815.0,16814.0,6.71752422]
[1672984736413,16.16806486,16815.0,16814.0,6.71752422]
[1672984740827,16.16806486,16815.0,16814.0,6.36080782]
[1672984741631,16.16806486,16815.0,16814.0,6.71751744]
[1672984741886,16.16806486,16815.0,16814.0,6.36080782]
[1672984746209,16.16806486,16815.0,16814.0,6.65814782]
[1672984746499,16.16806486,16815.0,16814.0,6.36080782]
[1672984747800,16.16806486,16815.0,16814.0,6.71755613]
[1672984748028,16.16806486,16815.0,16814.0,6.36080782]
[1672984754749,16.16806486,16815.0,16814.0,5.91507821]
[1672984757550,16.16796248,16815.0,16814.0,5.91507821]
[1672984759592,16.16796248,16815.0,16814.0,5.79363217]
[1672984760202,16.16796248,16815.0,16814.0,5.91507821]
[1672984760396,16.16796248,16815.0,16814.0,6.36123458]
[1672984760646,16.16796248,16815.0,16814.0,5.36123458]
[1672984760899,16.16796248,16815.0,16814.0,5.36125504]
[1672984762265,16.16796248,16815.0,16814.0,4.91507821]
[1672984763308,16.16796248,16815.0,16814.0,4.34747555]
[1672984763824,16.16796248,16815.0,16814.0,4.91507821]
[1672984774553,16.16796248,16815.0,16814.0,5.77099108]
[1672984775253,16.16796248,16815.0,16814.0,5.60851314]
[1672984775530,16.16796248,16815.0,16814.0,6.19569292]
[1672984778343,16.16796248,16815.0,16814.0,4.80442276]
[1672984781208,16.16786095,16815.0,16814.0,4.80442276]
[1672984781467,16.16786095,16815.0,16814.0,6.19460456]
[1672984785352,16.16786095,16815.0,16814.0,4.80502383]
[1672984785880,16.16786095,16815.0,16814.0,6.19485596]
[1672984790515,16.16786095,16815.0,16814.0,6.19415568]
[1672984791443,16.16786095,16815.0,16814.0,6.19475675]
[1672984794469,16.16786095,16815.0,16814.0,4.80432355]
[1672984800430,16.18823862,16815.0,16814.0,4.80432355]
[1672984801233,16.18823862,16815.0,16814.0,6.19447259]
[1672984801735,16.18823862,16815.0,16814.0,4.0647475]
[1672984801992,16.18823862,16815.0,16814.0,4.63235016]
[1672984802750,16.18823862,16815.0,16814.0,4.0647475]
[1672984803275,16.18823862,16815.0,16814.0,3.1647475]
[1672984803553,16.18823862,16815.0,16814.0,3.61083392]
[1672984803812,16.18823862,16815.0,16814.0,3.967711]
[1672984804103,16.18823862,16815.0,16814.0,4.35582275]
[1672984804325,16.18823862,16815.0,16814.0,3.99894567]
[1672984804592,16.18823862,16815.0,16814.0,4.29894567]
[1672984804851,16.18823862,16815.0,16814.0,4.65578761]
[1672984805405,16.42591651,16815.0,16814.0,3.38049608]
[1672984805647,16.18823862,16815.0,16814.0,3.20202167]
[1672984805860,16.18823862,16815.0,16814.0,2.08137713]
[1672984807449,16.8753065,16815.0,16814.0,1.48742946]
[1672984807703,17.4869715,16815.0,16814.0,0.71427479]
[1672984807966,16.8753065,16815.0,16814.0,0.71427479]
[1672984808221,17.46497935,16815.0,16814.0,0.12]
[1672984808486,17.94552814,16815.0,16814.0,0.12]
[1672984808745,18.39061004,16815.0,16814.0,0.12]
[1672984809015,18.55719314,16815.0,16814.0,0.12]
[1672984809515,18.37900234,16815.0,16814.0,0.12]
[1672984809767,17.78512521,16815.0,16814.0,0.12]
[1672984810025,17.78512521,16815.0,16814.0,1.309484]
[1672984810279,16.90634955,16815.0,16814.0,1.309484]
[1672984811857,16.90634955,16815.0,16814.0,0.714742]
[1672984813643,16.72841322,16815.0,16814.0,0.714742]
[1672984814435,16.90634955,16815.0,16814.0,0.714742]
[1672984815150,16.72841322,16815.0,16814.0,0.714742]
[1672984815914,17.32229035,16815.0,16814.0,0.714742]
[1672984816757,16.72841322,16815.0,16814.0,0.714742]
[1672984819772,16.72841322,16815.0,16814.0,0.12]
[1672984828524,16.72841322,16815.0,16814.0,0.714742]
[1672984830091,16.72841322,16815.0,16814.0,1.309484]
[1672984838428,16.90634955,16815.0,16814.0,1.309484]
[1672984843740,17.17346021,16815.0,16814.0,1.309484]
[1672984844323,17.78512521,16815.0,16814.0,1.309484]
[1672984844838,17.17346021,16815.0,16814.0,1.309484]
[1672984845663,17.35165101,16815.0,16814.0,1.309484]
[1672984845926,18.14151907,16815.0,16814.0,1.309484]
[1672984846185,17.78539194,16815.0,16814.0,1.309484]
[1672984846441,17.17372694,16815.0,16814.0,1.309484]
[1672984847496,17.35165101,16815.0,16814.0,1.309484]
[1672984847815,18.73516438,16815.0,16814.0,1.309484]
[1672984848532,17.52962225,16815.0,16814.0,1.309484]
[1672984849588,17.82639107,16815.0,16814.0,1.309484]
[1672984849892,17.82639107,16815.0,16814.0,0.714742]
[1672984850665,18.43805607,16815.0,16814.0,0.714742]
[1672984851174,18.43805607,16815.0,16814.0,0.12]
[1672984851738,19.0319332,16815.0,16814.0,0.12]
[1672984852491,18.67580607,16815.0,16814.0,0.12]
[1672984855102,18.08192894,16815.0,16814.0,0.12]
[1672984855363,17.47026394,16815.0,16814.0,0.12]
[1672984855604,17.82672728,16815.0,16814.0,0.12]
[1672984856655,17.82672728,16815.0,16814.0,0.714742]
[1672984866453,17.52995846,16815.0,16814.0,0.714742]
[1672984868254,17.82666415,16815.0,16814.0,0.714742]
[1672984869798,17.52995846,16815.0,16814.0,0.714742]
[1672984870940,17.79732836,16815.0,16814.0,0.714742]
[1672984871616,17.52995846,16815.0,16814.0,0.714742]
[1672984872136,17.82666905,16815.0,16814.0,0.714742]
[1672984873985,17.52995846,16815.0,16814.0,0.714742]
[1672984874209,17.52995846,16815.0,16814.0,1.309484]
[1672984874504,17.82725117,16815.0,16814.0,1.309484]
[1672984875361,17.52995846,16815.0,16814.0,1.309484]
[1672984876145,17.82726152,16815.0,16814.0,1.309484]
[1672984876679,17.52995846,16815.0,16814.0,1.309484]
[1672984877201,17.82726919,16815.0,16814.0,1.309484]
[1672984878757,17.82715664,16815.0,16814.0,1.309484]
[1672984879047,17.52995846,16815.0,16814.0,1.309484]
[1672984879359,17.79734759,16815.0,16814.0,1.309484]
[1672984879617,17.52995846,16815.0,16814.0,1.309484]
[1672984880412,17.82715036,16815.0,16814.0,1.309484]
[1672984887462,17.47068702,16815.0,16814.0,1.309484]
[1672984887981,17.47068702,16815.0,16814.0,0.714742]
[1672984888243,18.08235202,16815.0,16814.0,0.714742]
[1672984888675,18.08299604,16815.0,16814.0,0.714742]
[1672984889454,17.89941217,16815.0,16814.0,1.41209729]
[1672984889998,16.93115644,16815.0,16814.0,0.714742]
[1672984891290,17.54282144,16815.0,16814.0,0.714742]
[1672984892272,16.93115644,16815.0,16814.0,0.714742]
[1672984892983,17.2877499,16815.0,16814.0,0.714742]
[1672984898973,16.93115644,16815.0,16814.0,0.714742]
[1672984900974,17.28787863,16815.0,16814.0,0.714742]
[1672984901508,16.93115644,16815.0,16814.0,0.714742]
[1672984904108,17.28786636,16815.0,16814.0,0.714742]
[1672984905685,16.93115644,16815.0,16814.0,0.714742]
[1672984906580,17.52503357,16815.0,16814.0,0.714742]
[1672984906831,17.54282144,16815.0,16814.0,0.714742]
[1672984907090,16.93115644,16815.0,16814.0,0.714742]
[1672984907346,17.54282144,16815.0,16814.0,0.714742]
[1672984907647,16.93115644,16815.0,16814.0,0.714742]
[1672984909450,17.54282144,16815.0,16814.0,0.714742]
[1672984909673,16.93115644,16815.0,16814.0,0.714742]
[1672984912642,17.28788582,16815.0,16814.0,0.714742]
[1672984914436,17.28787724,16815.0,16814.0,0.714742]
[1672984915437,16.93115644,16815.0,16814.0,0.714742]
[1672984915692,17.28786851,16815.0,16814.0,0.714742]
[1672984918613,17.89953351,16815.0,16814.0,0.714742]
[1672984919875,17.28786851,16815.0,16814.0,0.714742]
[1672984920636,17.28672357,16815.0,16814.0,0.714742]
[1672984920894,16.99067661,16815.0,16814.0,1.33481626]
[1672984921153,16.81248356,16815.0,16814.0,1.33481626]
[1672984921414,16.81248356,16815.0,16814.0,1.92955826]
[1672984924176,16.99081456,16815.0,16814.0,1.92955826]
[1672984924396,16.81248356,16815.0,16814.0,1.92955826]
[1672984924874,16.99079613,16815.0,16814.0,1.92955826]
[1672984925694,16.81248356,16815.0,16814.0,1.92955826]
[1672984925949,16.99079667,16815.0,16814.0,1.92955826]
[1672984926205,16.81248356,16815.0,16814.0,1.92955826]
[1672984927198,16.99078399,16815.0,16814.0,1.92955826]
[1672984927732,16.81248356,16815.0,16814.0,1.92955826]
[1672984932219,16.99078556,16815.0,16814.0,1.92955826]
[1672984932968,16.81248356,16815.0,16814.0,1.92955826]
[1672984935001,16.99077403,16815.0,16814.0,1.92955826]
[1672984935467,16.99077023,16815.0,16814.0,1.92955826]
[1672984935683,16.63405816,16815.0,16814.0,1.92955826]
[1672984938972,16.36652529,16815.0,16814.0,2.22955826]
[1672984939226,16.36652529,16815.0,16814.0,1.92955826]
[1672984939486,16.63405816,16815.0,16814.0,1.92955826]
[1672984944367,16.63405816,16815.0,16814.0,0.74007426]
[1672984944683,16.63405816,16815.0,16814.0,1.92955826]
[1672984945635,16.36652529,16815.0,16814.0,1.92955826]
[1672984945891,16.36652529,16815.0,16814.0,2.22955826]
[1672984950434,16.36652529,16815.0,16814.0,1.92955826]
[1672984951232,16.36652529,16815.0,16814.0,2.22955826]
[1672984952384,16.36652529,16815.0,16814.0,2.22946026]
[1672984954972,16.63405816,16815.0,16814.0,1.92946026]
[1672984959407,16.99077023,16815.0,16814.0,1.92946026]
[1672984959937,16.63405816,16815.0,16814.0,1.92946026]
[1672984960158,16.36652529,16815.0,16814.0,2.70787293]
[1672984960389,16.36652529,16815.0,16814.0,3.00787293]
[1672984961132,16.36652529,16815.0,16814.0,2.82946026]
[1672984961388,16.63405816,16815.0,16814.0,2.52946026]
[1672984961645,16.63405816,16815.0,16814.0,1.92946026]
[1672984966722,16.63405816,16815.0,16814.0,1.90446026]
[1672984968449,16.63405816,16815.0,16814.0,2.20446026]
[1672984968726,16.63405816,16815.0,16814.0,1.90446026]
[1672984970328,16.63409004,16815.0,16814.0,1.92386415]
[1672984974983,16.63409004,16815.0,16814.0,2.22386415]
[1672984976349,16.36655717,16815.0,16814.0,2.22386415]
[1672984976609,16.36655717,16815.0,16814.0,2.40227682]
[1672984978184,16.63409004,16815.0,16814.0,2.40227682]
[1672984978559,16.63409004,16815.0,16814.0,2.22386415]
[1672984980019,16.63409004,16815.0,16814.0,1.92386415]
[1672984980279,16.18823862,16815.0,16814.0,4.56590705]
[1672984980536,16.18823862,16815.0,16814.0,5.4223219]
[1672984980801,16.18823862,16815.0,16814.0,12.9223219]
[1672984981565,16.18823862,16815.0,16814.0,12.9224433]
[1672984981861,16.18823862,16815.0,16814.0,12.56547996]
[1672984982434,16.18823862,16815.0,16814.0,12.69047227]
[1672984982942,16.18823862,16815.0,16814.0,12.24438585]
[1672984983200,16.18823862,16815.0,16814.0,12.69018278]
[1672984983491,16.18823862,16815.0,16814.0,13.04682089]
[1672984983804,16.18823862,16815.0,16814.0,12.56519047]
[1672984984834,16.18823862,16815.0,16814.0,12.4414531]
[1672984985391,15.016698,16815.0,16814.0,12.4414531]
[1672984986674,15.016698,16815.0,16814.0,12.88701821]
[1672984986934,15.016698,16815.0,16814.0,13.48089534]
[1672984987190,15.016698,16815.0,16814.0,13.83717501]
[1672984987804,15.016698,16815.0,16814.0,13.48089534]
[1672984988538,15.016698,16815.0,16814.0,13.8370578]
[1672984989044,15.016698,16815.0,16814.0,13.48089534]
[1672984989548,15.016698,16815.0,16814.0,13.83703737]
[1672984992052,15.016698,16815.0,16814.0,13.48089534]
[1672984993063,15.016698,16815.0,16814.0,13.83683686]
[1672984993574,15.016698,16815.0,16814.0,13.48089534]
[1672984994389,15.016698,16815.0,16814.0,13.836836]
[1672984997995,15.016698,16815.0,16814.0,14.036836]
[1672984999235,15.016698,16815.0,16814.0,14.57368397]
[1672984999521,15.016698,16815.0,16814.0,14.036836]
[1672985002895,14.711542,16815.0,16814.0,14.036836]
[1672985003398,14.711542,16815.0,16814.0,13.68089534]
[1672985004883,14.069678,16815.0,16814.0,13.68089534]
[1672985005401,12.89821132,16815.0,16814.0,13.68089534]
[1672985005661,12.58437432,16815.0,16814.0,13.68089534]
[1672985005908,12.27229532,16815.0,16814.0,13.68089534]
[1672985006998,11.57639132,16815.0,16814.0,13.68089534]
[1672985007454,10.97007532,16815.0,16814.0,13.68089534]
[1672985007712,10.66691732,16815.0,16814.0,13.68005323]
[1672985007977,10.66691732,16815.0,16814.0,13.23533023]
[1672985008519,10.66691732,16815.0,16814.0,13.24383023]
[1672985008780,10.66691732,16815.0,16814.0,13.68853768]
[1672985009035,10.66691732,16815.0,16814.0,13.68859474]
[1672985010258,10.66691732,16815.0,16814.0,13.68850519]
[1672985013076,10.66691732,16815.0,16814.0,13.24374068]
[1672985013602,9.76635332,16815.0,16814.0,13.24374068]
[1672985014409,9.76635332,16815.0,16814.0,13.8529521]
[1672985015303,9.76635332,16815.0,16814.0,14.38830939]
[1672985015556,7.57636473,16815.0,16814.0,14.38830939]
[1672985015821,6.43189402,16815.0,16814.0,14.66779839]
[1672985016074,6.06870302,16815.0,16814.0,14.66779839]
[1672985016332,5.41801202,16815.0,16814.0,14.66779839]
[1672985017885,4.61446402,16815.0,16814.0,14.68159647]
[1672985018172,4.21269002,16815.0,16814.0,14.14623918]
[1672985018478,4.21269002,16815.0,16814.0,14.68060583]
[1672985018968,4.21269002,16815.0,16814.0,14.14623918]
[1672985020812,4.21269002,16815.0,16814.0,13.86675018]
[1672985021072,4.21269002,16815.0,16814.0,14.14623292]
[1672985024065,4.21269002,16815.0,16814.0,14.68096742]
[1672985024544,4.21269002,16815.0,16814.0,14.14623292]
[1672985025288,3.04128314,16815.0,16814.0,14.13243484]
[1672985026051,3.04128314,16815.0,16814.0,13.8529521]
[1672985026303,3.04128314,16815.0,16814.0,14.13243579]
[1672985027547,3.04128314,16815.0,16814.0,14.14623387]
[1672985027791,3.04128314,16815.0,16814.0,14.13243579]
[1672985028050,3.04128314,16815.0,16814.0,14.14623387]
[1672985028322,3.04128314,16815.0,16814.0,14.13243579]
[1672985029093,3.04128314,16815.0,16814.0,14.14623387]
[1672985031084,3.04128314,16815.0,16814.0,14.13243579]
[1672985031337,3.04128314,16815.0,16814.0,13.8529521]
[1672985031602,3.04128314,16815.0,16814.0,14.13243593]
[1672985033164,1.01983695,16815.0,16814.0,13.976601]
[1672985033431,0.70240995,16815.0,16814.0,13.976601]
[1672985034615,0.04967395,16815.0,16814.0,13.976601]
[1672985034874,0.00147236,16818.0,16815.0,0.5]
[1672985035166,0.00147236,16818.0,16817.0,2.22400959]
[1672985035423,0.00147236,16818.0,16817.0,5.50506019]
[1672985035951,0.00162236,16818.0,16817.0,4.50506019]
[1672985036244,0.07862236,16818.0,16817.0,5.51006019]
[1672985037581,0.07847236,16818.0,16817.0,6.1920329]
[1672985037776,0.07847236,16818.0,16817.0,6.78591003]
[1672985038028,0.07847236,16818.0,16817.0,6.60763957]
[1672985038545,0.07847236,16818.0,16817.0,6.96421648]
[1672985038786,0.07847236,16818.0,16817.0,6.78591003]
[1672985039044,0.07847236,16818.0,16817.0,6.1920329]
[1672985039528,0.07847236,16818.0,16817.0,6.1920929]
[1672985039758,0.07847236,16818.0,16817.0,6.37041657]
[1672985040021,0.07847236,16818.0,16817.0,6.1920929]
[1672985042026,0.07847236,16818.0,16817.0,5.51012019]
[1672985042283,0.07847236,16818.0,16817.0,5.68840864]
[1672985042534,0.07847236,16818.0,16817.0,6.39298987]
[1672985042792,0.07847236,16818.0,16817.0,6.28228577]
[1672985043298,0.07847236,16818.0,16817.0,6.38887534]
[1672985043549,0.07847236,16818.0,16817.0,5.68840864]
[1672985044300,0.07847236,16818.0,16817.0,5.09289187]
[1672985045109,0.07847236,16818.0,16817.0,5.77943184]
[1672985045296,0.07847236,16818.0,16817.0,5.09289187]
[1672985045590,0.07847236,16818.0,16817.0,5.36035735]
[1672985045826,0.07847236,16818.0,16817.0,4.91463622]
[1672985046074,0.07847236,16818.0,16817.0,5.45821742]
[1672985046327,0.07847236,16818.0,16817.0,5.83130236]
[1672985048108,0.07847236,16818.0,16817.0,6.00966138]
[1672985048358,0.07847236,16818.0,16817.0,5.40734722]
[1672985048953,0.07847236,16818.0,16817.0,5.03426228]
[1672985050130,0.07847236,16818.0,16817.0,4.85590326]
[1672985052675,0.07847236,16818.0,16817.0,5.03429507]
[1672985052933,0.07847236,16818.0,16817.0,4.85590326]
[1672985053436,0.07847236,16818.0,16817.0,5.03432239]
[1672985053690,0.07847236,16818.0,16817.0,4.85590326]
[1672985054018,0.07847236,16818.0,16817.0,5.0343224]
[1672985054254,0.07847236,16818.0,16817.0,4.85590326]
[1672985058648,0.07847236,16818.0,16817.0,5.18481827]
[1672985059166,0.07837948,16818.0,16817.0,5.18481827]
[1672985060380,0.07837948,16818.0,16817.0,4.64123707]
[1672985061153,0.07837948,16818.0,16817.0,5.27650422]
[1672985061895,0.07837948,16818.0,16817.0,5.72222535]
[1672985062146,0.07837948,16818.0,16817.0,5.45469987]
[1672985062533,0.07837948,16818.0,16817.0,5.72234365]
[1672985062794,0.07837948,16818.0,16817.0,4.62623808]
[1672985063258,0.07837948,16818.0,16817.0,12.12623808]
[1672985063549,0.00137948,16818.0,16817.0,12.12123808]
[1672985063805,0.01437948,16818.0,16817.0,12.17123808]
[1672985064096,0.00137948,16818.0,16817.0,12.12123808]
[1672985064398,0.01437948,16818.0,16817.0,12.17123808]
[1672985065143,0.01437948,16818.0,16817.0,12.61713168]
[1672985065942,0.01437948,16818.0,16817.0,12.61713717]
[1672985072514,0.01437948,16818.0,16817.0,12.01713717]
[1672985072781,0.01437948,16818.0,16817.0,12.61713717]
[1672985077115,0.01437948,16818.0,16817.0,13.18633333]
[1672985077372,0.01437948,16818.0,16817.0,12.61713717]
[1672985080352,0.25205737,16818.0,16817.0,12.68829982]
[1672985080622,0.01437948,16818.0,16817.0,13.35735124]
[1672985080869,0.01437948,16818.0,16817.0,13.48065896]
[1672985081135,0.01437948,16818.0,16817.0,12.91166729]
[1672985081388,0.01437948,16818.0,16817.0,13.47972875]
[1672985081642,0.01437948,16818.0,16817.0,12.71166729]
[1672985081907,0.01437948,16818.0,16817.0,12.91166729]
[1672985082169,0.01437948,16818.0,16817.0,13.47960224]
[1672985083499,0.01437948,16818.0,16817.0,13.92528619]
[1672985083810,0.01437948,16818.0,16817.0,13.65786824]
[1672985084326,0.01437948,16818.0,16817.0,13.47961479]
[1672985085655,0.01437948,16818.0,16817.0,13.92529874]
[1672985085881,0.01437948,16818.0,16817.0,13.47961479]
[1672985089612,0.01437948,16818.0,16817.0,13.65786824]
[1672985090655,0.01437948,16818.0,16817.0,13.92531762]
[1672985090933,0.01437948,16818.0,16817.0,13.65786824]
[1672985091449,0.01437948,16818.0,16817.0,13.47963694]
[1672985091703,0.01437948,16818.0,16817.0,13.92532089]
[1672985091966,0.01437948,16818.0,16817.0,13.65786824]
[1672985093543,0.01437948,16818.0,16817.0,13.50207137]
[1672985095369,0.01437948,16818.0,16817.0,13.30207137]
[1672985095581,0.01437948,16818.0,16817.0,12.94551845]
[1672985096351,0.01437948,16818.0,16817.0,13.50215748]
[1672985097456,0.01437948,16818.0,16817.0,13.14551845]
[1672985097732,0.01437948,16818.0,16817.0,13.50218639]
[1672985097992,0.01437948,16818.0,16817.0,13.50218777]
[1672985099020,0.01437948,16818.0,16817.0,13.14551845]
[1672985099353,0.01437948,16818.0,16817.0,13.5022114]
[1672985102001,0.01437948,16818.0,16817.0,13.4910514]
[1672985102482,0.01437948,16818.0,16817.0,12.97398966]
[1672985102743,0.01437948,16818.0,16817.0,12.61729671]
[1672985103550,0.01437948,16818.0,16817.0,13.27134679]
[1672985104852,0.01437948,16818.0,16817.0,13.6280901]
[1672985105110,0.01437948,16818.0,16817.0,13.27134679]
[1672985105923,0.01437948,16818.0,16817.0,13.62809013]
[1672985106147,0.01437948,16818.0,16817.0,13.27134679]
[1672985109446,0.01437948,16818.0,16817.0,13.62810484]
[1672985109676,0.01437948,16818.0,16817.0,13.27134679]
[1672985115057,0.01437948,16818.0,16817.0,13.62815454]
[1672985122301,0.01437948,16818.0,16817.0,13.62820238]
[1672985126482,0.01429009,16818.0,16817.0,13.62820238]
[1672985129222,0.01357439,16818.0,16817.0,13.62820238]
[1672985129492,0.01357439,16818.0,16817.0,13.61970238]
[1672985132853,0.01357439,16818.0,16817.0,13.44164173]
[1672985138175,0.01357439,16818.0,16817.0,13.88732568]
[1672985138767,0.01357439,16818.0,16817.0,13.61970238]
[1672985139033,0.01357439,16818.0,16817.0,13.8873017]
[1672985140071,0.01357439,16818.0,16817.0,13.61970238]
[1672985140573,0.01357439,16818.0,16817.0,13.88730167]
[1672985140820,0.01357439,16818.0,16817.0,13.61970238]
[1672985141344,0.01357439,16818.0,16817.0,13.88730273]
[1672985141608,0.01357439,16818.0,16817.0,13.44161878]
[1672985143513,0.01357439,16818.0,16817.0,13.88730273]
[1672985144264,0.01357439,16818.0,16817.0,13.88747987]
[1672985145527,0.01357439,16818.0,16817.0,13.44179592]
[1672985146721,0.01357439,16818.0,16817.0,13.88747987]
[1672985146972,0.01357439,16818.0,16817.0,13.44179592]
[1672985148275,0.01357439,16818.0,16817.0,13.67192813]
[1672985148526,0.01357439,16818.0,16817.0,13.40432778]
[1672985148780,0.01357439,16818.0,16817.0,13.67194708]
[1672985149701,0.01357439,16818.0,16817.0,13.40432778]
[1672985151019,0.01357439,16818.0,16817.0,13.24030935]
[1672985156327,0.01357439,16818.0,16817.0,13.04030935]
[1672985156583,0.01357439,16818.0,16817.0,12.88496407]
[1672985157637,0.01357439,16818.0,16817.0,13.08496407]
[1672985162244,0.01357439,16818.0,16817.0,13.08478693]
[1672985163002,0.01357439,16818.0,16817.0,13.35246934]
[1672985163253,0.01357439,16818.0,16817.0,13.08478693]
[1672985163537,0.01357439,16818.0,16817.0,13.3524695]
[1672985164025,0.01357439,16818.0,16817.0,13.08478693]
[1672985165769,0.01357439,16818.0,16817.0,13.10713702]
[1672985166029,0.01357439,16818.0,16817.0,13.37481914]
[1672985166280,0.01357439,16818.0,16817.0,12.92913519]
[1672985166538,0.01357439,16818.0,16817.0,13.37481914]
[1672985166794,0.01357439,16818.0,16817.0,12.92913519]
[1672985168635,0.83206775,16818.0,16817.0,2.51123034]
[1672985168942,1.20605486,16818.0,16817.0,2.01772123]
[1672985169142,1.20605486,16818.0,16817.0,1.839272]
[1672985169143,0.80355794,16818.0,16817.0,1.839272]
[1672985169395,0.45942581,16818.0,16817.0,1.839272]
[1672985170429,0.45942581,16818.0,16817.0,2.139272]
[1672985170683,0.45942581,16818.0,16817.0,2.13968349]
[1672985170936,1.05037817,16818.0,16817.0,2.139272]
[1672985171507,1.22877169,16818.0,16817.0,2.139272]
[1672985171723,1.22877169,16818.0,16817.0,1.839272]
[1672985171973,1.22877169,16818.0,16817.0,2.139272]
[1672985171974,1.40701718,16818.0,16817.0,2.139272]
[1672985172242,1.05030511,16818.0,16817.0,2.139272]
[1672985174413,1.2924908,16818.0,16817.0,2.139272]
[1672985175431,1.05030511,16818.0,16817.0,2.139272]
[1672985176462,1.97454841,16818.0,16817.0,1.544636]
[1672985176784,2.40796792,16818.0,16817.0,0.65]
[1672985177228,0.4,16817.0,16816.0,1.14181045]
[1672985177480,0.4,16817.0,16816.0,1.44181045]
[1672985178073,1.97434482,16818.0,16816.0,1.44181045]
[1672985178268,0.59745741,16817.0,16816.0,1.44181045]